Cogmind - Beta 10.2 @@@ ROGUE MODE // 2021.07.02 @ 08:58:19 Player: ExAliquo Result: Destroyed by as-57656 with Assembled Maul Performance ------------- Evolutions (0) 0 Regions Visited (2) 400 Robots Destroyed (15) 75 Value Destroyed (259) 259 Prototype IDs (0) 0 Alien Tech Used (0) 0 Bonus (0) 0 TOTAL SCORE: 734 Bonus ------- None Cogmind --------- Core Integrity 0/250 Matter 300/300 Energy 100/100 System Corruption 6% Temperature Cool (0) Movement Treading (152) Location -10/Mines Parts ------- > --- POWER (1) -------- (None) > --- PROPULSION (2) --- Light Treads Advanced Treads > --- UTILITY (2) ------ Medium Storage Unit > --- WEAPON (2) ------- (None) > --- INVENTORY (8) ---- Ion Engine Ion Engine Light Treads Light Treads Aluminum Leg Wheel Medium Matter Pod (90) Mining Laser Peak State ------------ > --- POWER ------------ Light Nuclear Core > --- PROPULSION ------- Aluminum Leg Aluminum Leg > --- UTILITY ---------- Medium Storage Unit Medium Storage Unit > --- WEAPON ----------- Assault Rifle Heavy Battle Rifle > --- INVENTORY -------- Ion Engine Ion Engine Light Treads Light Treads Light Treads Light Treads Wheel Medium Matter Pod Medium Laser Light Assault Rifle Grenade Launcher Mining Laser [Rating: 13] Favorites ----------- Power Light Nuclear Core Engine Ion Engine Power Core Light Nuclear Core Propulsion Aluminum Leg Treads Light Treads Leg Aluminum Leg Wheel Wheel Utility Medium Storage Unit Storage Medium Storage Unit Weapon Assault Rifle Energy Gun Medium Laser Ballistic Gun Assault Rifle Launcher Grenade Launcher Build | -11 -10 -10 ------- Run | Scr Mat Min Slots Evolved . | . . . Power . | . . . Propulsion . | . . . Utility . | . . . Weapon . | . . . Parts Attached 19 | 1 8 10 Power 2 | . 1 1 Engine . | . . . Core 2 | . 1 1 Reactor . | . . . Propulsion 5 | . . 5 Treads 4 | . . 4 Leg . | . . . Wheel 1 | . . 1 Hover . | . . . Flight . | . . . Utility 4 | 1 3 . Device . | . . . Storage 4 | 1 3 . Processor . | . . . Hackware . | . . . Protection . | . . . Artifact . | . . . Weapon 8 | . 4 4 Energy Gun 1 | . . 1 Energy Cannon . | . . . Ballistic Gun 4 | . 2 2 Ballistic Cannon . | . . . Launcher 3 | . 2 1 Special Weapon . | . . . Impact Weapon . | . . . Slashing Weapon . | . . . Piercing Weapon . | . . . Special Melee Weapon . | . . . Unidentified Prototypes . | . . . Parts Lost 8 | . . 8 Power 1 | . . 1 Propulsion 1 | . . 1 Utility 1 | . . 1 Weapon 5 | . . 5 Highest Loss Streak 7 | . . 7 Average Slot Usage (%) 95 | . 100 91 Engine 4 | . 11 . Core 8 | . 3 12 Treads 4 | . . 8 Leg 20 | . 28 14 Wheel 2 | . . 4 Storage 26 | . 28 26 Ballistic Gun 23 | . 26 22 Launcher 1 | . 2 . Naked Turns . | . . . Heaviest Build 29 | 16 24 29 Greatest Support 42 | 20 20 42 Greatest Overweight (x) 2 | . 1 2 Average Overweight (x) . | . . 1 Largest Inventory Capacity 12 | 8 12 12 Average Capacity 10 | 6 10 11 Most Carried 12 | 6 12 12 Average Carried 10 | 6 9 11 Final Capacity 12 | 8 12 8 Final Carried 12 | 6 12 8 Class Distribution -------------------- 74% | Mutant 25% | Scavenger-Mutant Dominant Class ---------------- Mutant | -10/Materials Mutant | -10/Mines Resources | -11 -10 -10 ----------- Run | Scr Mat Min Matter Collected 596 | 216 188 192 Remotely . | . . . Salvage Created 393 | 62 203 128 Parts 26 | 3 17 6 Haulers Intercepted 2 | . 2 . Recyclers Shooed 1 | . 1 . Parts Field Recycled . | . . . Retrieved Matter . | . . . Parts Self-Destructed . | . . . Prevented . | . . . Kills | -11 -10 -10 ------- Run | Scr Mat Min Combat Hostiles Destroyed 17 | . 8 9 Melee 3 | . . 3 Guns 6 | . 2 4 AOE 8 | . 6 2 Classes Destroyed 7 | 1 5 1 Worker 1 | . 1 . Hauler 2 | . 2 . Recycler 1 | 1 . . Watcher 1 | . 1 . Swarmer 6 | . 6 . Grunt 4 | . 2 2 Assembled 7 | . . 7 Best Kill Streak 4 | 1 4 4 Combat Bots Only 4 | . 3 4 Max Kills in Single Turn 2 | 1 2 1 Gunslinging . | . . . Exploded 2 | . 2 1 Melee 1 | . . 1 Uniques/NPCs Destroyed . | . . . Combat | -11 -10 -10 -------- Run | Scr Mat Min Damage Taken 1645 | . 235 1410 Core 276 | . 56 220 Absorbed by Shields . | . . . Core Remaining (%) 100 | 100 . . Volleys Fired 51 | 4 26 21 Largest 2 | 2 2 2 Hottest 70 | 40 40 70 Shots Fired 82 | 8 42 32 Gun 72 | 8 37 27 Cannon . | . . . Launcher 10 | . 5 5 Special . | . . . Kinetic 66 | 8 37 21 Thermal 6 | . . 6 Explosive 10 | . 5 5 Electromagnetic . | . . . Robot Hit Streak 11 | 2 11 9 Robot Miss Streak 7 | 3 2 7 Penetration Max . | . . . Secondary Targets 1 | . . 1 Max Gunslinging Chain 1 | . . 1 Shots Hit Robots 46 | 3 26 17 Core Hits 54 | 2 21 31 Critical Hits . | . . . Critical Kills . | . . . Critical Parts Destroyed . | . . . Melee Attacks . | . . . Impact . | . . . Slashing . | . . . Piercing . | . . . Sneak Attacks . | . . . Combat Hostiles . | . . . Follow-up Attacks . | . . . Damage Inflicted 1270 | 29 661 580 Guns 557 | 29 283 245 Cannons . | . . . Explosions 675 | . 378 297 Melee . | . . . Ramming 38 | . . 38 Kinetic 518 | 29 283 206 Thermal 39 | . . 39 Explosive 675 | . 378 297 Electromagnetic . | . . . Impact . | . . . Slashing . | . . . Piercing . | . . . Highest Corruption 6 | . . 6 Average Corruption 4 | . . 4 Corruption Purged . | . . . Effects 2 | . . 2 Matter Fused 1 | . . 1 Energy Discharges 1 | . . 1 Overload Shots . | . . . Overflow Damage 47 | . 32 15 Projectiles . | . . . Explosions 47 | . 32 15 Melee . | . . . Knockbacks . | . . . Impact . | . . . Kinetic . | . . . Secondary . | . . . Self-Inflicted Damage 88 | . 10 78 Shots 5 | . 2 3 Rammed 25 | . . 25 Targets Rammed 27 | . . 27 Kicked . | . . . Crushed 2 | . . 2 Highest Temperature 132 | . 9 132 Average Temperature 40 | . 4 55 Received Heat Transfer 86 | . 21 65 Siege Activations . | . . . Robots Corrupted . | . . . Combat Hostiles . | . . . Parts Fried . | . . . Impact Corruptions . | . . . Robots Melted . | . . . Combat Hostiles . | . . . Parts Melted . | . . . Heat Transferred 111 | . . 111 Parts Sabotaged . | . . . Parts Stolen . | . . . Parts Stripped . | . . . Power Chain Reactions . | . . . Missiles Intercepted . | . . . Alert | -11 -10 -10 ------- Run | Scr Mat Min Peak Influence 262 | 5 262 75 Initial 25 | . 3 25 Average 53 | 3 89 27 Maximum Alert Level 1 | . 1 . Low Security (%) 96 | 100 91 100 Level 1 3 | . 8 . Level 2 . | . . . Level 3 . | . . . Level 4 . | . . . Level 5 . | . . . High Security . | . . . Max Security . | . . . Squads Dispatched . | . . . Investigation . | . . . Extermination . | . . . Reinforcement . | . . . Assault . | . . . Garrison . | . . . Intercept . | . . . Construction Impeded . | . . . Haulers Reinforced . | . . . Stealth | -11 -10 -10 --------- Run | Scr Mat Min Distress Signals 2 | . 2 . Communications Jammed . | . . . Distress Signals . | . . . Times Spotted 27 | . 13 14 Peak Tracking Total 5 | . 4 5 Tactical Retreats 1 | . . 1 Traps | -11 -10 -10 ------- Run | Scr Mat Min Traps Triggered 1 | . . 1 Indirectly . | . . . Trap Hack Attempts . | . . . Triggered . | . . . Disarmed 6 | . 6 . Reprogrammed . | . . . Reused . | . . . Traps Extracted . | . . . Installed . | . . . Triggered . | . . . Machines | -11 -10 -10 ---------- Run | Scr Mat Min Machines Disabled 1 | . . 1 Max in Single Turn 1 | . . 1 Machines Sabotaged . | . . . Garrisons Compromised . | . . . Overloaded Fab Kills . | . . . Fab Network Shutdowns . | . . . Hacking | -11 -10 -10 --------- Run | Scr Mat Min Machines Accessed 5 | . 4 1 Terminals 4 | . 4 . Fabricators . | . . . Repair Stations . | . . . Recycling Units . | . . . Scanalyzers . | . . . Garrison Access . | . . . Total Hacks 17 | . 16 1 Successful 11 | . 10 1 Failed 5 | . 5 . Catastrophic . | . . . Database Lockouts 1 | . 1 . Manual 7 | . 7 . Terminals 16 | . 16 . Fabricators . | . . . Repair Stations . | . . . Recycling Units . | . . . Scanalyzers . | . . . Garrison Access . | . . . Terminal Hacks 8 | . 7 1 Robot Analysis 2 | . 2 . Open Door 1 | . . 1 Locate Traps 1 | . 1 . Disarm Traps 2 | . 2 . Hauler Manifests 1 | . 1 . Zone Layout 1 | . 1 . Fabricator Hacks . | . . . Repair Station Hacks . | . . . Recycling Unit Hacks . | . . . Scanalyzer . | . . . Garrison Access Hacks . | . . . Unauthorized Hacks 3 | . 3 . Terminals 3 | . 3 . Track 1 | . 1 . Botnet 1 | . 1 . Operators 1 | . 1 . Fabricators . | . . . Repair Stations . | . . . Recycling Units . | . . . Scanalyzers . | . . . Garrison Access . | . . . Data Cores Recovered . | . . . Used . | . . . Hacking Detections 4 | . 4 . Full Trace Events . | . . . Feedback Events . | . . . Feedback Blocked . | . . . Robot Schematics Acquired . | . . . Robots Built . | . . . Matter . | . . . Time . | . . . Total Robot Build Rating . | . . . Part Schematics Acquired . | . . . Parts Built . | . . . Matter . | . . . Time . | . . . Total Part Build Rating . | . . . Parts Repaired . | . . . Time . | . . . Parts Recycled . | . . . Recycled Matter . | . . . Retrieved Matter . | . . . Retrieved Components . | . . . Parts Scanalyzed . | . . . Part Schematics Acquired . | . . . Parts Damaged . | . . . Bothacking | -11 -10 -10 ------------ Run | Scr Mat Min Used RIF Installer . | . . . Robots Hacked . | . . . Non-combat . | . . . Combat . | . . . Robot Hacks Applied . | . . . Relay Couplers Released . | . . . Robots Rewired . | . . . Allies Hacked . | . . . Hacks Repelled . | . . . Allies | -11 -10 -10 -------- Run | Scr Mat Min Total Allies . | . . . Largest Group . | . . . Highest-Rated Group . | . . . Highest-Rated Ally . | . . . Total Orders . | . . . Ally Attacks . | . . . Total Damage . | . . . Kills . | . . . Allies Corrupted . | . . . Allies Melted . | . . . Intel | -11 -10 -10 ------- Run | Scr Mat Min Robot Analysis Total 2 | . 2 . Derelict Logs Recovered 1 | . . 1 Drone Launches . | . . . Drone Recoveries . | . . . Exploration | -11 -10 -10 ------------- Run | Scr Mat Min Turns Passed 991 | 30 424 537 Spaces Moved 549 | 15 226 308 Core . | . . . Treads 17 | . . 17 Legs 418 | 15 226 177 Wheels 114 | . . 114 Hover . | . . . Flight . | . . . Fastest Speed 100 | 120 120 100 Average Speed 132 | 120 135 131 Slowest Speed 160 | 120 150 160 Overloaded Moves . | . . . Propulsion Burnouts . | . . . Robots Hopped . | . . . Cave-ins Triggered . | . . . Exploration Rate (%) 44 | 3 55 75 Regions Visited 2 Branch Regions 1 Pre-discovered Areas . | . . . Known Exits Taken . | . . . Unknown Exits Taken 2 | 1 1 . Scrap Searched 1 | . . 1 Spaces Dug 7 | . . 7 Terrain Destroyed 68 | . 23 45 Melee . | . . . Projectile . | . . . AOE 68 | . 23 45 Terrain Rammed . | . . . Walls Destroyed . | . . . Machines Disabled . | . . . Actions | -11 -10 -10 --------- Run | Scr Mat Min Total 719 | 19 306 394 Wait 60 | . 36 24 Move 547 | 14 225 308 Hop . | . . . Pick Up 8 | . 6 2 Fast Attach 2 | 1 1 . Attach 6 | . . 6 Detach 1 | . 1 . Swap 11 | . 7 4 Drop 6 | . 4 2 Fire 51 | 4 26 21 Melee . | . . . Ram . | . . . Kick . | . . . Crush 27 | . . 27 Escape Stasis . | . . . Rewire . | . . . Trap . | . . . Miscellaneous . | . . . Route ------- -11/Scrapyard -10/Materials (discovered 3 exits: [*Mat x2] / *Min) -10/Mines (discovered 1 exit: [*Mat]) History --------- Turn | Location | Event 13 | -11/Scrapyard | Discovered new exit (range 3) 31 | -11/Scrapyard | Entered Materials 138 | -10/Materials | Discovered new exit (range 15) 243 | -10/Materials | Discovered new exit (range 15) 308 | -10/Materials | Build established: Mutant 420 | -10/Materials | Discovered new exit (range 7) 431 | -10/Materials | Central database locked down 455 | -10/Materials | Entered Mines 652 | -10/Mines | A weapon hastily lodged in a ceiling crevice suddenly fell to the ground 724 | -10/Mines | Met a Derelict who couldn't figure out how to use a Trap Extractor 785 | -10/Mines | Discovered new exit (range 11) 819 | -10/Mines | Assembled infested the area 824 | -10/Mines | Assisted by a Guerilla fighting off Assembled 889 | -10/Mines | Core integrity fell below 50% 928 | -10/Mines | Core integrity fell below 20% 979 | -10/Mines | Lost 7 parts (1p1n1u4w) 992 | -10/Mines | Destroyed by as-57656 with Assembled Maul Last Messages --------------- 00952_ Acquired 20 matter. 00953_ Acquired 3 matter. 00961_ Acquired 4 matter. 00963_ System corrupted: Energy discharge (-25). 00964_ Acquired 14 matter. 00967_ Slammed into as-57656. 00969_ Slammed into as-81971. 00972_ Crushed as-81971. 00972_ as-81971 destroyed. 00973_ Acquired 6 matter. 00975_ K-01 Serf destroyed. 00978_ R-06 Scavenger collects Sml. Storage Unit. 00979_ Acquired 12 matter. 00984_ Slammed into as-57656. 00985_ System corrupted: Matter fused (-9). 00985_ Slammed into as-57656. 00985_ R-06 Scavenger collects Flight Unit. 00988_ Slammed into as-57656. 00990_ The unstable cave ceiling collapses. 00990_ Slammed into as-57656. Map ----- +----------------------------------------------------+ | ??????# #????? ???????????????# ## #? | | ??????# #????? ?????????????### ## #? | | ??????# #????? ?????????????# ## #? | | ??????# #????? ?????????????# ############? | | #?????# #????? ?????????????# #???????????? | | ##????####### ##????? ?????????????# #######?????? | | #??????????# #?????# #????????????# #?????? | | #??????????# #?????# #?????######## ##### #?????? | | #?########## #?????# #????## #???# #?????? | | #### ###???# #???## [ #???# #?????? | | # # ####### #???# #???# #####???# #????? | | #?????# #???# #???# ##???????# #??## | | #?????### # ??# #???## #??????### #?# | | ##??????# ""### ###### #?????## ## | | #####??# %%%%%%== ## #????## | | ##?###"%%%%=## ## ##??## | | #??????!==#?# #### | | ######### ### ## | | # ######## ## ##?# | | #### ##### ## # #??????## ### ##???## | | #??## ##?## ##??????# #?# #??????# | | #???## #??# #????### #?# ##??????## | | #????## ##??### ##% ##??## ### #??####?? | | ??????####???# # #### #### ##? | | ?????????????###### # ### ## ## | | ??????????????????# @a# #### | | ??????????????????# "" # ! ! #### | | ??????????????????# " ## ### #### | | ??????????????????# " #### ### ##??## | | ??????????????????#### ##??### #####????## | | ?????????????????????### ##?????## ##???????### | | ???????????????????????# #???????## !] #???? ?##?? | | ???????????????????????# #????????# ##??? #?? | | ??????????????????????? #???????## #??? #?? | | ???????????????????????# #??????## #?? #?? | | ???????????????????????# #??????# ##?? #?? | | ???????????????????????# #??????# ###??? #?? | | ??????????????????????? #??????# ##????# #?? | | ???????????????????????###??????# #????# #?? | | ????????????????????????????????# ##### #?? | | ????????????????????????????????## ## ! #?? | | ?????????????????????????????????## ! #??? | | ??????????????????????????????????# #????? | | ??????????????????????????????????## ##????? | | ???????????????????????????????????### ##?????? | | ?????????????????????????????????????## #??????# | | ??????????????????????????????????????# ##??????# | | ??????????????????????????????????????# #??????## | | ??????????????????????????????????????# #?????## | | ??????????????????????????????????????# #????## | +----------------------------------------------------+ Best States ------------- Heat Dissipation 25 Energy Generation 14 Energy Capacity 250 Matter Stores 300 Matter Capacity 300 Sight Range 16 Terrain Scan Density 10 Evasion (%) 40 Recoil Reduction 2 Item Schematics ----------------- None Robot Schematics ------------------ None Fabricated ------------ Nothing Alien Tech Used ----------------- None Achievements -------------- None Challenges ------------ None Game ------ Seed StormNodeThruster Manual? 0 Play Time 00:15:01 Cumulative 13.6 hours Start 2021.07.02 @ 08:40:11 End 2021.07.02 @ 08:58:19 Sessions 1 Manual Loads 0 Difficulty Rogue Special Mode None Game No. 30 Rogue 30 Adventurer 0 Explorer 0 Win Type - Total 0 Types 0/0/0/0/0/0/0/0/0 Lore% 39 Gallery% 44 Achievement% 44 Wizard Run 0 Options --------- ASCII 0 Keyboard 0 Movement Numpad Keybinds 0 Fullscreen 1 Font 18/SmallcapsGlow Map View 76x50 Tactical HUD 1 Map Filters NONE Filters NONE Steam 1 RUN: 91384b72-b57e-4023-900f-947844177852